fUSD/lending_fUSD_20250617
["ID","MTS","AMOUNT","RATE_DAILY","PERIOD"]
[366229141,1750139446921,-490.0,0.00016467,2]
[366229142,1750139446931,-490.0,0.00016467,2]
[366229143,1750139446941,-3445.49,0.00016467,2]
[366229144,1750139446951,-588.78,0.00016467,2]
[366229145,1750139446962,-490.0,0.00016467,2]
[366229146,1750139446972,-1130.92,0.00016467,2]
[366229147,1750139446987,-3768.07,0.00016467,2]
[366229148,1750139446997,-490.0,0.00016467,2]
[366229149,1750139447007,-1572.84,0.00016467,2]
[366229150,1750139447017,-490.0,0.00016467,2]
[366229151,1750139447027,-490.0,0.00016467,2]
[366229152,1750139447037,-490.0,0.00016467,2]
[366229153,1750139447047,-296.85,0.00016467,2]
[366229154,1750139447056,-516.74,0.00016467,2]
[366229155,1750139447066,-385.72,0.00016467,2]
[366229156,1750139447077,-490.0,0.00016467,2]
[366229157,1750139447087,-1501.25,0.00016467,2]
[366229158,1750139447097,-490.0,0.00016467,2]
[366229159,1750139447106,-247.9,0.00016467,2]
[366229160,1750139447116,-902.88,0.00016467,2]
[366229161,1750139447127,-490.0,0.00016467,2]
[366229162,1750139447137,-1753.28,0.00016467,2]
[366229163,1750139447147,-490.0,0.00016467,2]
[366229164,1750139447157,-3007.57,0.00016467,2]
[366229165,1750139447167,-490.0,0.00016467,2]
[366229166,1750139447177,-742.44,0.00016467,2]
[366229167,1750139447187,-490.0,0.00016467,2]
[366229168,1750139447197,-553.59,0.00016467,2]
[366229169,1750139447207,-151.0,0.00016467,2]
[366229170,1750139447217,-461.93,0.00016467,2]
[366229171,1750139447228,-490.0,0.00016467,2]
[366229172,1750139447238,-647.19,0.00016467,2]
[366229173,1750139447248,-490.0,0.00016467,2]
[366229174,1750139447257,-2213.28,0.00016467,2]
[366229175,1750139447267,-1175.72,0.00016467,2]
[366229176,1750139447278,-490.0,0.00016467,2]
[366229177,1750139447288,-490.0,0.00016467,2]
[366229178,1750139447299,-442.76381291,0.00016467,2]
[366229179,1750139447308,-939.47,0.00016467,2]
[366229180,1750139447318,-490.0,0.00016467,2]
[366229181,1750139447330,-589.91,0.00016467,2]
[366229182,1750139447340,-1772.84,0.00016467,2]
[366229183,1750139447350,-490.0,0.00016467,2]
[366229184,1750139447361,-1000.0,0.00016467,2]
[366229185,1750139447371,-490.0,0.00016467,2]
[366229186,1750139447381,-456.68783447,0.00016467,2]
[366229187,1750139447754,-1572.80216553,0.00016467,2]
[366229188,1750139447764,-490.0,0.00016467,2]
[366229189,1750139447774,-490.0,0.00016467,2]
[366229190,1750139447784,-1623.6,0.00016467,2]
[366229191,1750139447795,-490.0,0.00016467,2]
[366229192,1750139447805,-2906.3,0.00016467,2]
[366229193,1750139447816,-490.0,0.00016467,2]
[366229194,1750139447825,-1500.96,0.00016467,2]
[366229195,1750139447835,-490.0,0.00016467,2]
[366229196,1750139447845,-490.0,0.00016467,2]
[366229197,1750139447863,-490.0,0.00016467,2]
[366229198,1750139447878,-712.17,0.00016467,2]
[366229199,1750139447888,-490.0,0.00016467,2]
[366229200,1750139447899,-774.69,0.00016467,2]
[366229201,1750139447910,-490.0,0.00016467,2]
[366229202,1750139447922,-490.0,0.00016467,2]
[366229203,1750139447933,-490.0,0.00016467,2]
[366229204,1750139447944,-490.0,0.00016467,2]
[366229205,1750139447955,-529.23,0.00016467,2]
[366229206,1750139447966,-490.0,0.00016467,2]
[366229207,1750139447976,-490.0,0.00016467,2]
[366229208,1750139447988,-1976.63670621,0.00016467,2]
[366229209,1750139448444,-388.515,0.00016467,2]
[366229210,1750139448458,-3835.74829379,0.00016467,2]
[366229211,1750139448469,-490.0,0.00016467,2]
[366229212,1750139448479,-490.0,0.00016467,2]
[366229213,1750139448489,-215.95195077,0.00016467,2]
[366229214,1750139448507,-274.04804923,0.00016467,2]
[366229215,1750139448517,-66.09195077,0.00016467,2]
[366229216,1750139543198,500.0,0.00013164,2]
[366229218,1750139746322,165.34,0.00015379,2]
[366229219,1750139880316,166.0,0.0001539,2]
[366229220,1750139892396,201.0,0.00014506,2]
[366229221,1750139892666,201.0,0.00015138,2]
[366229222,1750140054531,666.0,0.00015269,2]
[366229224,1750140251886,201.0,0.0001477,2]
[366229225,1750140252141,201.0,0.00015416,2]
[366229226,1750140306348,150.0,0.00015288,2]
[366229227,1750140380331,1000.0,0.00015279,2]
[366229228,1750140388410,355.43,0.00013699,2]
[366229229,1750140569194,601.0,0.000154,5]
[366229237,1750140597303,152.36,0.00015361,2]
[366229238,1750140611697,201.0,0.00015062,2]
[366229243,1750140631956,-166.0,0.000155,2]
[366229244,1750140631967,-375.65929644,0.00015522,2]
[366229245,1750140631979,-397.55070356,0.00015522,2]
[366229246,1750140631989,-250.0,0.00015565,2]
[366229247,1750140631998,-201.0,0.00015723,2]
[366229248,1750140632008,-55.14039299,0.00015854,2]
[366229249,1750140632020,-94.85960701,0.00015854,2]
[366229250,1750140632030,-167.08,0.00015868,2]
[366229251,1750140632039,-500.0,0.00015904,2]
[366229252,1750140632049,-389.87302573,0.0001599,2]
[366229253,1750140632120,-779.19634414,0.0001599,2]
[366229254,1750140632132,-253.54076076,0.0001599,2]
[366229255,1750140632142,-207.4,0.0001599,2]
[366229256,1750140632152,-300.0,0.00015997,2]
[366229257,1750140632162,-57.11461616,0.00015997,2]
[366229258,1750140632174,-473.92482379,0.00015997,2]
[366229360,1750140637788,-668.96056005,0.00015997,2]
[366229361,1750140637798,-681.14914795,0.00015998,2]
[366229362,1750140637952,-642.76071279,0.00015998,2]
[366229363,1750140638012,-7243.8042086,0.00015998,2]
[366229364,1750140638023,-4451.04678114,0.00016,2]
[366229365,1750140638033,-985.38501178,0.00016,2]
[366229367,1750140639998,-385.09499988,0.00016,2]
[366229368,1750140640104,-3080.56676947,0.00016,2]
[366229369,1750140640115,-4451.04678113,0.00016,2]
[366229370,1750140640125,-4451.04678113,0.00016003,2]
[366229371,1750140640136,-4451.04678113,0.00016038,2]
[366229372,1750140640146,-4451.04678113,0.00016072,2]
[366229373,1750140640156,-797.51,0.000161,2]
[366229374,1750140640166,-797.62,0.000161,2]
[366229375,1750140640176,-461.68,0.000161,2]
[366229376,1750140640186,-461.68,0.000161,2]
[366229377,1750140640196,-797.62,0.000161,2]
[366229378,1750140640207,-797.62,0.000161,2]
[366229379,1750140640218,-461.68,0.000161,2]
[366229380,1750140640229,-797.62,0.000161,2]
[366229381,1750140640239,-461.68,0.000161,2]
[366229382,1750140640250,-461.68,0.000161,2]
[366229383,1750140640260,-797.62,0.000161,2]
[366229384,1750140640271,-199.88,0.000161,2]
[366229385,1750140640281,-1126.99,0.000161,2]
[366229386,1750140640291,-789.88370933,0.000161,2]
[366229387,1750140640304,-7.52629067,0.000161,2]
[366229388,1750140640314,-2156.68890133,0.00016107,2]
[366229389,1750140640327,-853.54859157,0.00016107,2]
[366229390,1750140640340,-1291.51401662,0.00016107,2]
[366229391,1750140640352,-149.29527161,0.00016107,2]
[366229392,1750140640362,-1727.04106289,0.00016141,2]
[366229393,1750140640374,-658.29133689,0.00016141,2]
[366229398,1750140642891,-2065.71438135,0.00016141,2]
[366229399,1750140642907,-4451.04678113,0.00016176,2]
[366229400,1750140642918,-1869.47661411,0.000162,2]
[366229401,1750140642928,-6250.93245093,0.000162,2]
[366229402,1750140642939,-797.31,0.000162,2]
[366229403,1750140642949,-4451.04678113,0.0001621,2]
[366229404,1750140642960,-4451.04678113,0.00016245,2]
[366229405,1750140642970,-151.0,0.00016256,2]
[366229406,1750140642981,-490.0,0.00016266,2]
[366229407,1750140642991,-490.0,0.00016266,2]
[366229408,1750140643002,-494.39,0.00016266,2]
[366229409,1750140643013,-631.49,0.00016266,2]
[366229410,1750140643023,-629.33,0.00016266,2]
[366229411,1750140643034,-490.0,0.00016266,2]
[366229412,1750140643045,-490.0,0.00016266,2]
[366229413,1750140643056,-490.0,0.00016266,2]
[366229414,1750140643067,-490.0,0.00016266,2]
[366229415,1750140643077,-313.723791,0.00016266,2]
[366229416,1750140643088,-490.0,0.00016266,2]
[366229417,1750140643100,-551.3,0.00016266,2]
[366229418,1750140643111,-538.43,0.00016266,2]
[366229419,1750140643122,-577.75,0.00016266,2]
[366229420,1750140643133,-579.13,0.00016266,2]
[366229421,1750140643143,-579.63,0.00016266,2]
[366229422,1750140643154,-490.0,0.00016266,2]
[366229423,1750140643165,-490.0,0.00016266,2]
[366229424,1750140643175,-490.0,0.00016266,2]
[366229425,1750140643186,-490.0,0.00016266,2]
[366229426,1750140643197,-490.0,0.00016266,2]
[366229427,1750140643208,-490.0,0.00016266,2]
[366229428,1750140643218,-490.0,0.00016266,2]
[366229429,1750140643229,-490.0,0.00016266,2]
[366229430,1750140643239,-490.0,0.00016266,2]
[366229431,1750140643250,-490.0,0.00016266,2]
[366229432,1750140643261,-503.92,0.00016266,2]
[366229433,1750140643271,-608.08,0.00016266,2]
[366229434,1750140643282,-490.0,0.00016266,2]
[366229435,1750140643292,-490.0,0.00016266,2]
[366229436,1750140643303,-490.0,0.00016266,2]
[366229437,1750140643314,-500.0,0.00016266,2]
[366229438,1750140643325,-490.0,0.00016266,2]
[366229439,1750140643336,-490.0,0.00016266,2]
[366229441,1750140643347,-490.0,0.00016266,2]
[366229443,1750140643357,-490.0,0.00016266,2]
[366229444,1750140643367,-498.74,0.00016266,2]
[366229445,1750140643378,-632.04,0.00016266,2]
[366229446,1750140643389,-490.0,0.00016266,2]
[366229447,1750140643399,-490.0,0.00016266,2]
[366229448,1750140643410,-490.0,0.00016266,2]
[366229450,1750140643420,-490.0,0.00016266,2]
[366229451,1750140643431,-491.7351289,0.00016266,2]
[366229452,1750140643442,-490.0,0.00016266,2]
[366229453,1750140643453,-490.0,0.00016266,2]
[366229454,1750140643463,-163.22,0.00016266,2]
[366229455,1750140643474,-4451.04678113,0.00016279,2]
[366229456,1750140643485,-185.0,0.000163,2]
[366229457,1750140643495,-185.0,0.000163,2]
[366229458,1750140643506,-187.11,0.000163,3]
[366229459,1750140643516,-163.22,0.00016302,2]
[366229460,1750140643527,-490.0,0.00016302,2]
[366229461,1750140643538,-490.0,0.00016302,2]
[366229462,1750140643549,-490.0,0.00016302,2]
[366229463,1750140643560,-490.0,0.00016302,2]
[366229464,1750140643570,-490.0,0.00016302,2]
[366229465,1750140643581,-490.0,0.00016302,2]
[366229466,1750140643591,-168.5508583,0.00016302,2]
[366229467,1750140644063,-321.4491417,0.00016302,2]
[366229468,1750140644074,-490.0,0.00016302,2]
[366229469,1750140644085,-490.0,0.00016302,2]
[366229470,1750140644095,-428.2508583,0.00016302,2]
[366229471,1750140644109,-61.7491417,0.00016302,2]
[366229472,1750140644120,-490.0,0.00016302,2]
[366229473,1750140644131,-490.0,0.00016302,2]
[366229474,1750140644141,-490.0,0.00016302,2]
[366229475,1750140644152,-490.0,0.00016302,2]
[366229476,1750140644163,-490.0,0.00016302,2]
[366229477,1750140644180,-525.87797424,0.00016302,2]
[366229478,1750140644191,-627.4,0.00016302,2]
[366229479,1750140644203,-491.67350484,0.00016303,2]
[366229480,1750140644214,-491.29829085,0.00016303,2]
[366229481,1750140644227,-490.0,0.00016303,2]
[366229482,1750140644238,-492.14327588,0.00016303,2]
[366229483,1750140644250,-491.36113836,0.00016303,2]
[366229484,1750140644261,-492.80919449,0.00016303,2]
[366229485,1750140644273,-490.61261551,0.00016303,2]
[366229486,1750140644284,-490.0,0.00016303,2]
[366229487,1750140644295,-490.0,0.00016303,2]
[366229488,1750140644307,-490.79671387,0.00016303,2]
[366229489,1750140644318,-490.60007123,0.00016303,2]
[366229490,1750140644329,-490.0,0.00016303,2]
[366229491,1750140644340,-490.0,0.00016303,2]
[366229492,1750140644352,-491.69080664,0.00016303,2]
[366229493,1750140644364,-491.31946396,0.00016303,2]
[366229494,1750140644376,-491.64049577,0.00016303,2]
[366229495,1750140644387,-490.82192507,0.00016303,2]
[366229496,1750140644399,-490.62795057,0.00016303,2]
[366229497,1750140644411,-491.3427641,0.00016303,2]
[366229498,1750140644423,-398.87489048,0.00016303,2]
[366229499,1750140644436,-151.0,0.00016304,2]
[366229500,1750140644448,-151.0,0.00016304,2]
[366229501,1750140644878,-151.0,0.00016304,2]
[366229502,1750140644904,-199.377043,0.00016312,2]
[366229503,1750140644919,-199.377043,0.00016312,2]
[366229504,1750140644929,-151.0,0.00016312,2]
[366229505,1750140644939,-151.0,0.00016312,2]
[366229506,1750140644949,-4451.04678113,0.00016314,2]
[366229507,1750140644958,-1039.256783,0.00016322,2]
[366229508,1750140644968,-2569.40018259,0.0001633,2]
[366229509,1750140644978,-4451.04678113,0.00016348,2]
[366229510,1750140644988,-150.0,0.00016357,2]
[366229511,1750140644998,-150.0,0.0001636,2]
[366229512,1750140645007,-776.46293834,0.00016366,2]
[366229513,1750140645018,-162.69916967,0.00016366,2]
[366229514,1750140645027,-150.0,0.00016368,2]
[366229515,1750140645037,-200.0,0.00016369,2]
[366229516,1750140645048,-200.0,0.0001637,2]
[366229517,1750140645058,-3575.34875884,0.00016377,2]
[366229518,1750140645067,-150.0,0.00016377,2]
[366229519,1750140645077,-150.0,0.00016378,2]
[366229520,1750140645087,-150.0,0.0001638,2]
[366229521,1750140645096,-4451.04678113,0.00016383,2]
[366229522,1750140645107,-201.0,0.00016384,3]
[366229523,1750140645117,-3575.34875884,0.00016384,2]
[366229524,1750140645127,-150.0,0.00016387,2]
[366229525,1750140645137,-530.71085778,0.00016387,2]
[366229526,1750140645147,-150.0,0.00016395,2]
[366229527,1750140645157,-200.0,0.00016397,2]
[366229528,1750140645167,-200.0,0.00016407,2]
[366229529,1750140645176,-200.0,0.00016415,2]
[366229530,1750140645186,-4451.04678113,0.00016417,2]
[366229531,1750140645196,-3575.34875884,0.0001642,2]
[366229532,1750140645205,-150.0,0.0001642,2]
[366229533,1750140645217,-150.0,0.00016422,2]
[366229534,1750140645227,-776.46293834,0.00016425,2]
[366229535,1750140645237,-3575.34875884,0.00016428,2]
[366229536,1750140645247,-200.0,0.00016428,2]
[366229537,1750140645257,-210.47,0.0001643,2]
[366229538,1750140645267,-490.0,0.0001643,2]
[366229539,1750140645277,-490.0,0.0001643,2]
[366229540,1750140645287,-299.29,0.0001643,2]
[366229541,1750140645296,-490.0,0.0001643,2]
[366229542,1750140645306,-431.21,0.0001643,2]
[366229543,1750140645317,-490.0,0.0001643,2]
[366229544,1750140645327,-490.0,0.0001643,2]
[366229545,1750140645336,-316.33,0.0001643,2]
[366229546,1750140645346,-292.63,0.0001643,2]
[366229547,1750140645356,-467.18,0.0001643,2]
[366229548,1750140645366,-490.0,0.0001643,2]
[366229549,1750140645376,-590.58,0.0001643,2]
[366229550,1750140645386,-490.0,0.0001643,2]
[366229551,1750140645396,-516.22,0.0001643,2]
[366229552,1750140645406,-150.0,0.00016431,2]
[366229553,1750140645416,-3575.34875884,0.00016436,2]
[366229554,1750140645427,-500.0,0.00016437,2]
[366229555,1750140645437,-300.0,0.00016438,2]
[366229556,1750140645446,-182.92,0.00016438,2]
[366229557,1750140645456,-200.0,0.00016438,2]
[366229558,1750140645465,-3575.34875884,0.00016445,2]
[366229559,1750140645475,-200.0,0.00016446,2]
[366229560,1750140645485,-1000.0,0.00016446,2]
[366229561,1750140645494,-350.0,0.00016451,2]
[366229562,1750140645504,-166.6,0.00016451,2]
[366229563,1750140645513,-490.0,0.00016451,2]
[366229564,1750140645523,-490.0,0.00016451,2]
[366229565,1750140645532,-490.0,0.00016451,2]
[366229566,1750140645542,-1607.17,0.00016451,2]
[366229567,1750140645552,-490.0,0.00016451,2]
[366229568,1750140645565,-490.0,0.00016451,2]
[366229569,1750140645575,-861.18,0.00016451,2]
[366229570,1750140645585,-1574.67,0.00016451,2]
[366229571,1750140645595,-490.0,0.00016451,2]
[366229572,1750140645605,-490.0,0.00016451,2]
[366229573,1750140645615,-490.0,0.00016451,2]
[366229574,1750140645625,-1860.37,0.00016451,2]
[366229575,1750140645635,-307.84804923,0.00016451,2]
[366229576,1750140645645,-490.0,0.00016451,2]
[366229577,1750140645655,-490.0,0.00016451,2]
[366229578,1750140645666,-423.73,0.00016451,2]
[366229579,1750140645676,-490.0,0.00016451,2]
[366229580,1750140645686,-1938.95,0.00016451,2]
[366229581,1750140645696,-490.0,0.00016451,2]
[366229582,1750140645706,-1461.42,0.00016451,2]
[366229583,1750140645716,-4451.04678113,0.00016452,2]
[366229584,1750140645727,-150.0,0.00016452,2]
[366229585,1750140645742,-593.63922972,0.00016453,2]
[366229586,1750140645752,-150.0,0.00016454,2]
[366229587,1750140645763,-151.0,0.00016455,2]
[366229588,1750140645773,-151.0,0.00016455,2]
[366229589,1750140645783,-151.0,0.00016455,2]
[366229590,1750140645793,-162.69916967,0.00016455,2]
[366229591,1750140645803,-150.0,0.00016461,2]
[366229592,1750140645815,-490.0,0.00016463,2]
[366229593,1750140645826,-490.0,0.00016463,2]
[366229594,1750140645836,-490.0,0.00016463,2]
[366229595,1750140645846,-490.0,0.00016463,2]
[366229596,1750140645857,-490.0,0.00016463,2]
[366229597,1750140645867,-325.25665595,0.00016463,2]
[366229598,1750140645878,-490.0,0.00016463,2]
[366229599,1750140645888,-490.0,0.00016463,2]
[366229601,1750140645898,-490.0,0.00016463,2]
[366229603,1750140645907,-434.31,0.00016463,2]
[366229605,1750140645918,-490.0,0.00016463,2]
[366229607,1750140645927,-512.01,0.00016464,2]
[366229608,1750140645937,-633.29,0.00016464,2]
[366229609,1750140645947,-490.0,0.00016464,2]
[366229610,1750140645958,-490.0,0.00016464,2]
[366229611,1750140645968,-490.0,0.00016464,2]
[366229612,1750140645979,-490.0,0.00016464,2]
[366229613,1750140645988,-490.0,0.00016464,2]
[366229614,1750140645998,-1068.87,0.00016464,2]
[366229615,1750140646008,-557.31,0.00016464,2]
[366229616,1750140646018,-507.53,0.00016464,2]
[366229617,1750140646028,-543.45,0.00016464,2]
[366229618,1750140646039,-563.6,0.00016464,2]
[366229619,1750140646050,-490.0,0.00016464,2]
[366229620,1750140646061,-1045.62,0.00016464,2]
[366229621,1750140646071,-790.5,0.00016464,2]
[366229622,1750140646081,-1356.09,0.00016464,2]
[366229623,1750140646091,-902.19,0.00016464,2]
[366229624,1750140646101,-490.0,0.00016464,2]
[366229625,1750140646111,-1036.68,0.00016464,2]
[366229626,1750140646121,-511.11464869,0.00016464,2]
[366229627,1750140646132,-827.64,0.00016464,2]
[366229628,1750140646142,-2209.81,0.00016464,2]
[366229629,1750140646152,-680.57,0.00016464,2]
[366229630,1750140646163,-1077.74,0.00016464,2]
[366229631,1750140646173,-490.0,0.00016464,2]
[366229632,1750140646183,-1625.1,0.00016464,2]
[366229633,1750140646193,-490.0,0.00016464,2]
[366229634,1750140646203,-1488.3,0.00016464,2]
[366229635,1750140646213,-1089.23,0.00016464,2]
[366229636,1750140646223,-490.0,0.00016464,2]
[366229637,1750140646233,-490.0,0.00016464,2]
[366229638,1750140646243,-710.14,0.00016464,2]
[366229639,1750140646253,-1371.24,0.00016464,2]
[366229640,1750140646263,-449.35,0.00016464,2]
[366229641,1750140646273,-490.0,0.00016464,2]
[366229642,1750140646285,-1104.43,0.00016464,2]
[366229643,1750140646295,-490.0,0.00016464,2]
[366229644,1750140646306,-1006.66,0.00016464,2]
[366229645,1750140646316,-490.0,0.00016464,2]
[366229646,1750140646326,-1950.47,0.00016464,2]
[366229647,1750140646337,-490.0,0.00016464,2]
[366229648,1750140646348,-490.0,0.00016464,2]
[366229649,1750140646359,-490.0,0.00016464,2]
[366229650,1750140646370,-883.01,0.00016464,2]
[366229651,1750140646380,-189.95,0.00016465,2]
[366229652,1750140646390,-490.0,0.00016465,2]
[366229653,1750140646402,-490.0,0.00016465,2]
[366229654,1750140646412,-490.0,0.00016465,2]
[366229655,1750140646423,-191.49959358,0.00016465,2]
[366229656,1750140646434,-434.86294743,0.00016465,2]
[366229657,1750140646444,-500.0,0.00016465,2]
[366229658,1750140646454,-490.0,0.00016465,2]
[366229659,1750140646465,-490.0,0.00016465,2]
[366229660,1750140646476,-490.0,0.00016465,2]
[366229661,1750140646487,-486.22752758,0.00016465,2]
[366229663,1750140646497,-636.5,0.00016465,2]
[366229665,1750140646508,-490.0,0.00016465,2]
[366229666,1750140646517,-490.0,0.00016465,2]
[366229667,1750140646528,-490.0,0.00016465,2]
[366229668,1750140646538,-605.82,0.00016465,2]
[366229669,1750140646549,-490.0,0.00016465,2]
[366229670,1750140646559,-498.93,0.00016465,2]
[366229671,1750140646570,-357.29,0.00016465,2]
[366229672,1750140646580,-490.0,0.00016465,2]
[366229673,1750140646591,-777.0,0.00016465,2]
[366229674,1750140646601,-493.45286447,0.00016465,2]
[366229675,1750140646611,-490.0,0.00016465,2]
[366229676,1750140646621,-490.0,0.00016465,2]
[366229677,1750140646632,-490.0,0.00016465,2]
[366229678,1750140646643,-497.66863079,0.00016465,2]
[366229679,1750140646653,-490.0,0.00016465,2]
[366229680,1750140646663,-490.0,0.00016465,2]
[366229681,1750140646673,-220.23,0.00016465,2]
[366229682,1750140646683,-490.0,0.00016465,2]
[366229683,1750140646693,-490.0,0.00016465,2]
[366229684,1750140646703,-490.0,0.00016465,2]
[366229685,1750140646713,-490.0,0.00016465,2]
[366229686,1750140646723,-490.0,0.00016465,2]
[366229687,1750140646737,-526.39732639,0.00016465,2]
[366229688,1750140646747,-490.0,0.00016465,2]
[366229689,1750140646756,-490.0,0.00016465,2]
[366229690,1750140646766,-490.0,0.00016465,2]
[366229691,1750140646776,-490.0,0.00016465,2]
[366229692,1750140646786,-490.0,0.00016465,2]
[366229693,1750140646797,-490.0,0.00016465,2]
[366229694,1750140646807,-490.0,0.00016465,2]
[366229695,1750140646819,-734.03,0.00016465,2]
[366229696,1750140646829,-490.0,0.00016465,2]
[366229697,1750140646838,-490.0,0.00016465,2]
[366229698,1750140646848,-490.0,0.00016465,2]
[366229699,1750140646858,-507.33,0.00016465,2]
[366229700,1750140646868,-733.59,0.00016465,2]
[366229701,1750140646878,-1838.12,0.00016465,2]
[366229702,1750140646888,-1283.97,0.00016465,2]
[366229703,1750140646898,-325.81404982,0.00016465,2]
[366229704,1750140646908,-729.03,0.00016465,2]
[366229705,1750140646918,-933.71,0.00016465,2]
[366229706,1750140646928,-982.78,0.00016465,2]
[366229707,1750140646938,-1361.43,0.00016465,2]
[366229708,1750140646948,-1958.86,0.00016465,2]
[366229709,1750140646957,-490.0,0.00016465,2]
[366229710,1750140646967,-490.0,0.00016465,2]
[366229711,1750140646979,-2834.43,0.00016465,2]
[366229712,1750140646989,-490.0,0.00016465,2]
[366229713,1750140646999,-490.0,0.00016465,2]
[366229714,1750140647009,-490.0,0.00016465,2]
[366229715,1750140647018,-3158.37,0.00016465,2]
[366229716,1750140647029,-490.0,0.00016465,2]
[366229717,1750140647039,-1482.6,0.00016465,2]
[366229718,1750140647048,-490.0,0.00016465,2]
[366229719,1750140647058,-490.0,0.00016465,2]
[366229720,1750140647068,-621.01,0.00016465,2]
[366229721,1750140647077,-1376.14,0.00016465,2]
[366229722,1750140647087,-490.0,0.00016465,2]
[366229723,1750140647097,-490.0,0.00016465,2]
[366229724,1750140647107,-490.0,0.00016465,2]
[366229725,1750140647117,-593.25,0.00016465,2]
[366229726,1750140647126,-490.0,0.00016465,2]
[366229727,1750140647137,-540.75,0.00016465,2]
[366229728,1750140647146,-651.41,0.00016465,2]
[366229729,1750140647156,-490.0,0.00016465,2]
[366229730,1750140647165,-490.0,0.00016465,2]
[366229731,1750140647175,-2664.11,0.00016465,2]
[366229732,1750140647185,-343.08030306,0.00016465,2]
[366229733,1750140647195,-652.82,0.00016465,2]
[366229734,1750140647205,-490.0,0.00016465,2]
[366229735,1750140647215,-554.33629998,0.00016465,2]
[366229736,1750140647225,-490.0,0.00016465,2]
[366229737,1750140647235,-875.93,0.00016465,2]
[366229738,1750140647245,-490.0,0.00016465,2]
[366229739,1750140647254,-490.0,0.00016465,2]
[366229740,1750140647264,-2087.31,0.00016465,2]
[366229741,1750140647274,-490.0,0.00016465,2]
[366229742,1750140647284,-490.0,0.00016465,2]
[366229743,1750140647294,-552.85,0.00016465,2]
[366229744,1750140647304,-490.0,0.00016465,2]
[366229745,1750140647314,-490.0,0.00016465,2]
[366229746,1750140647324,-490.0,0.00016465,2]
[366229747,1750140647334,-465.54929043,0.00016465,2]
[366229748,1750140647347,-490.0,0.00016465,2]
[366229749,1750140647357,-614.71,0.00016465,2]
[366229750,1750140647367,-490.0,0.00016465,2]
[366229751,1750140647377,-1000.0,0.00016465,2]
[366229752,1750140647386,-490.0,0.00016465,2]
[366229753,1750140647395,-490.0,0.00016465,2]
[366229754,1750140647406,-490.0,0.00016465,2]
[366229755,1750140647415,-675.33,0.00016465,2]
[366229756,1750140647426,-490.0,0.00016465,2]
[366229757,1750140647436,-716.07,0.00016465,2]
[366229758,1750140647446,-490.0,0.00016465,2]
[366229759,1750140647456,-490.0,0.00016465,2]
[366229760,1750140647466,-490.0,0.00016465,2]
[366229761,1750140647476,-490.0,0.00016465,2]
[366229762,1750140647486,-323.68673353,0.00016465,2]
[366229763,1750140647496,-490.0,0.00016465,2]
[366229764,1750140647507,-490.0,0.00016465,2]
[366229765,1750140647516,-2743.83,0.00016465,2]
[366229766,1750140647526,-599.21,0.00016465,2]
[366229767,1750140647537,-490.0,0.00016465,2]
[366229768,1750140647546,-490.0,0.00016465,2]